bitfinex-derivatives/quotes_ETHF0:USTF0_20251021
["timestamp","ask_amount","ask_price","bid_price","bid_amount"]
[1761005819581,0.00239285,3971.0,3970.9,1.14038]
[1761005822682,0.6125,3971.8,3971.7,1.26729]
[1761005822986,0.6125,3971.8,3971.7,2.38316536]
[1761005823185,1.28597,3971.8,3971.7,2.03936536]
[1761005823683,1.28912962,3971.8,3971.7,2.04178415]
[1761005823980,0.61565962,3971.8,3971.7,2.38558415]
[1761005824183,0.35895962,3971.8,3971.7,2.38558415]
[1761005825479,0.35895962,3971.8,3971.7,2.58338948]
[1761005828082,0.00315962,3971.8,3971.7,3.69926484]
[1761005828982,0.3558,3972.4,3972.3,1.03802]
[1761005829180,3.4865,3972.8,3972.7,1.26717]
[1761005829475,0.022,3972.8,3972.7,11.31004536]
[1761005829679,0.3558,3973.4,3973.1,0.3438]
[1761005829887,0.35797556,3973.4,3973.3,2.38297536]
[1761005830290,0.1398,3974.0,3973.7,0.8142]
[1761005830291,0.3558,3974.0,3973.7,0.8142]
[1761005830494,3.4645,3974.4,3974.3,0.92319]
[1761005830788,3.6849,3974.8,3974.7,0.4704]
[1761005830986,4.0407,3974.8,3974.7,10.51827536]
[1761005831380,4.0431076,3974.8,3974.7,10.52133782]
[1761005831883,0.8353076,3974.8,3974.7,10.52133782]
[1761005832284,0.8353076,3974.8,3974.7,10.29213782]
[1761005832982,9.0431076,3974.8,3974.7,8.93506246]
[1761005833384,9.0431076,3974.8,3974.7,0.00306246]
[1761005833585,0.1398,3974.0,3973.8,1.11587536]
[1761005833782,0.8329,3973.9,3973.8,1.11587536]
[1761005834685,0.2567,3973.7,3973.6,7.2032]
[1761005834888,0.8329,3973.7,3973.6,7.20591574]
[1761005835989,0.6125,3973.7,3973.6,7.74841574]
[1761005836197,3.5621,3974.2,3974.1,0.45281]
[1761005836384,3.5621,3974.2,3974.1,5.11837948]
[1761005836691,0.9697,3974.5,3974.4,0.461]
[1761005837692,0.9697,3974.5,3973.8,1.1321]
[1761005837693,0.1334,3974.0,3973.6,3.43251574]
[1761005837894,0.8363,3973.7,3973.6,3.67151574]
[1761005838384,0.8363,3973.7,3973.6,3.21051574]
[1761005838784,0.8363,3973.7,3973.6,3.43251574]
[1761005838979,0.5948,3973.7,3973.6,3.97501574]
[1761005839901,0.5948,3973.7,3973.6,12.92201574]
[1761005840086,0.1334,3974.0,3973.8,0.7645]
[1761005840291,0.5948,3974.0,3973.9,0.7645]
[1761005841388,0.9697,3974.0,3973.9,0.461]
[1761005841688,0.9697,3974.0,3973.9,1.6368]
[1761005841892,6.42252,3974.0,3973.9,1.1758]
[1761005842102,0.8363,3973.7,3973.6,0.46371574]
[1761005842592,0.5948,3973.7,3973.6,3.67151574]
[1761005842786,0.5948,3973.7,3973.6,3.97501574]
[1761005842986,0.5948,3973.7,3973.6,3.67151574]
[1761005843190,0.5948,3973.7,3973.6,3.97501574]
[1761005843588,0.5948,3973.7,3973.6,12.92501574]
[1761005844291,0.8363,3973.7,3973.6,12.62151574]
[1761005844597,0.8363,3973.7,3973.6,0.00271574]
[1761005844888,5.8363,3973.7,3973.6,0.00271574]
[1761005845298,0.8363,3973.7,3973.6,0.00271574]
[1761005847197,5.8363,3973.7,3973.6,0.00271574]
[1761005848097,0.453,3972.5,3972.2,0.2836]
[1761005848291,0.453,3972.5,3971.8,3.2078]
[1761005848292,0.4258,3971.7,3971.4,3.4914]
[1761005848488,1.1031,3971.5,3971.4,4.17462]
[1761005848887,1.1031,3971.5,3971.4,3.2078]
[1761005849193,1.1031,3971.5,3970.0,2.66727429]
[1761005849194,0.9356,3971.1,3971.0,3.2078]
[1761005849388,0.9356,3971.1,3971.0,0.00280904]
[1761005849588,0.9356,3971.1,3970.2,3.2078]
[1761005849589,0.1675,3970.5,3970.2,3.2078]
[1761005849801,0.9356,3970.3,3970.2,3.2078]
[1761005849997,0.4258,3969.9,3969.6,3.2078]
[1761005850192,0.4258,3970.3,3970.1,0.45326]
[1761005850586,0.4258,3970.3,3970.1,0.45521747]
[1761005850792,0.4258,3970.2,3970.1,0.00195747]
[1761005852902,0.9356,3970.2,3970.1,0.00195747]
[1761005854399,0.9356,3970.2,3970.1,3.72345747]
[1761005857609,0.7018,3970.2,3970.1,4.13595747]
[1761005858008,0.7018,3970.2,3970.1,3.72345747]
[1761005858199,0.9356,3970.2,3970.1,3.72345747]
[1761005860809,0.9356,3970.2,3970.1,0.51565747]
[1761005861199,0.9356,3970.2,3970.1,0.92815747]
[1761005862014,0.9356,3970.2,3970.1,0.51565747]
[1761005862210,0.9356,3970.2,3970.1,0.92815747]
[1761005862813,0.9356,3970.2,3970.1,1.38142747]
[1761005863710,0.9356,3970.2,3970.1,0.96892747]
[1761005865010,3.7176,3970.9,3970.8,0.73679]
[1761005865508,4.1434,3970.9,3970.8,0.73679]
[1761005869415,4.1434,3970.9,3970.8,0.2836]
[1761005869920,1.1031,3970.5,3970.4,0.5137]
[1761005870619,1.1031,3970.5,3970.4,1.37944]
[1761005870818,0.7018,3970.5,3970.4,1.37944]
[1761005871221,0.8693,3970.5,3970.4,1.37944]
[1761005871719,0.7018,3970.5,3970.4,1.37944]
[1761005872321,0.8693,3970.5,3970.4,1.37944]
[1761005872518,0.7018,3970.5,3970.4,1.37944]
[1761005873212,1.1031,3970.5,3970.4,0.96694]
[1761005873919,1.1031,3970.5,3970.4,1.37944]
[1761005879426,1.66825631,3970.5,3970.4,1.37944]
[1761005880123,1.66825631,3970.5,3970.4,0.96694]
[1761005880526,1.66825631,3970.5,3970.4,1.34524]
[1761005880826,1.43445631,3970.5,3970.4,1.34524]
[1761005881021,0.99095631,3970.5,3970.4,1.34524]
[1761005881220,1.23975631,3970.5,3970.4,1.34524]
[1761005881630,0.8248,3971.0,3970.9,0.83149]
[1761005881817,0.8248,3971.0,3970.9,2.74365881]
[1761005882130,0.6573,3971.0,3970.9,2.74365881]
[1761005882432,0.71171163,3971.5,3971.4,0.72144]
[1761005882617,1.27668355,3971.5,3971.4,0.72144]
[1761005882815,1.27668355,3971.5,3971.4,0.45314]
[1761005883031,1.68518355,3971.5,3971.4,0.45314]
[1761005884524,1.68518355,3971.5,3971.4,1.40394]
[1761005886026,1.68518355,3971.5,3971.4,1.02564]
[1761005891131,1.68518355,3971.5,3971.4,0.72144]
[1761005893236,1.12021163,3971.5,3971.4,0.72144]
[1761005894938,0.41101163,3971.5,3971.4,1.40394]
[1761005895138,0.65981163,3971.5,3971.4,1.40394]
[1761005895339,0.82401163,3971.5,3971.4,1.40394]
[1761005895542,0.38631163,3971.5,3971.4,1.40394]
[1761005895933,0.62701163,3971.5,3971.4,1.40394]
[1761005896134,0.76991163,3971.5,3971.4,1.40394]
[1761005896843,1.01191163,3971.5,3971.4,1.40394]
[1761005897041,1.01191163,3971.5,3971.4,1.02564]
[1761005897240,1.01191163,3971.5,3971.4,0.72144]
[1761005899638,1.01191163,3971.5,3971.4,0.97054]
[1761005900934,1.01191163,3971.5,3971.4,0.72144]
[1761005902142,1.01191163,3971.5,3971.4,0.97054]
[1761005902444,0.00251163,3971.5,3971.4,4.53214]
[1761005903643,0.38631163,3971.5,3971.4,4.53214]
[1761005903832,0.62701163,3971.5,3971.4,4.53214]
[1761005904033,1.01191163,3971.5,3971.4,4.53214]
[1761005904239,1.01191163,3971.5,3971.4,3.66094]
[1761005904442,1.01191163,3971.5,3971.4,3.91364]
[1761005904643,1.01191163,3971.5,3971.4,5.25330881]
[1761005904830,0.76991163,3971.5,3971.4,5.50240881]
[1761005905035,0.00251163,3971.5,3971.4,4.51654]
[1761005905636,0.38631163,3971.5,3971.4,4.51654]
[1761005906241,1.01191163,3971.5,3971.4,4.16274]
[1761005906942,1.01191163,3971.5,3971.4,4.51654]
[1761005907148,0.38631163,3971.5,3971.4,4.51654]
[1761005907845,0.00251163,3971.5,3971.4,4.51654]
[1761005908343,0.37101163,3971.5,3971.4,4.51654]
[1761005910448,0.00251163,3971.5,3971.4,4.51654]
[1761005911352,0.00251163,3971.5,3971.4,5.87553429]
[1761005914150,3.4512,3972.3,3972.2,1.26385]
[1761005914449,4.01504846,3972.3,3972.2,1.26385]
[1761005914649,1.17574846,3972.3,3972.2,1.26385]
[1761005915039,1.17788388,3972.3,3972.2,1.45892892]
[1761005915843,0.00213542,3972.3,3972.2,1.45892892]
[1761005916344,0.37063542,3972.3,3972.2,1.45892892]
[1761005918651,0.00213542,3972.3,3972.2,1.45892892]
[1761005919252,0.00213542,3972.3,3972.2,2.81423621]
[1761005919555,0.00213542,3972.3,3972.2,1.45892892]
[1761005920253,0.00213542,3972.3,3972.2,2.81376055]
[1761005923251,0.00213542,3972.3,3972.2,1.45892892]
[1761005923448,0.37063542,3972.3,3972.2,1.45892892]
[1761005923842,0.00213542,3972.3,3972.2,1.45892892]
[1761005924458,0.6537,3973.0,3972.9,1.26377]
[1761005924752,0.6537,3973.0,3972.9,14.73923881]
[1761005924958,1.0222,3973.0,3972.9,14.41593881]
[1761005925451,1.02462551,3973.0,3972.9,14.41830395]
[1761005925652,1.02462551,3973.0,3972.9,14.74160395]
[1761005926061,0.00242551,3973.0,3972.9,14.74160395]
[1761005926350,0.1429,3973.5,3973.4,0.45291]
[1761005926351,0.3863,3973.5,3973.4,0.45291]
[1761005926558,0.6381,3974.0,3973.9,0.68686]
[1761005926752,0.17736417,3974.0,3973.9,2.64142881]
[1761005926954,0.15686417,3974.0,3973.9,2.64142881]
[1761005927154,0.36086417,3974.0,3973.9,2.64142881]
[1761005927356,0.36345861,3974.0,3973.9,2.64142881]
[1761005927754,0.00259444,3974.0,3973.9,2.64142881]
[1761005927960,3.4118,3974.1,3974.0,1.96404556]
[1761005928160,3.6158,3974.1,3974.0,1.96404556]
[1761005928561,3.8198,3974.1,3974.0,1.96404556]
[1761005928858,3.29494572,3974.1,3974.0,1.43664]
[1761005929257,3.09094572,3974.1,3974.0,1.43664]
[1761005931063,0.41055128,3974.1,3974.0,1.43664]
[1761005933161,0.61455128,3974.1,3974.0,1.43664]
[1761005933366,0.41055128,3974.1,3973.9,0.3614]
[1761005933559,0.612,3973.7,3973.6,0.81429]
[1761005933863,1.06488,3973.7,3973.6,0.3614]
[1761005934059,0.612,3973.6,3973.5,0.8143]
[1761005934259,0.612,3973.6,3973.5,0.4529]
[1761005934455,0.612,3973.6,3973.5,0.9492]
[1761005934767,0.408,3973.6,3973.5,1.4367]
[1761005934969,0.204,3973.6,3973.5,1.4367]
[1761005935463,1.06489,3973.6,3973.4,3.2078]
[1761005935668,0.612,3973.5,3973.4,4.02211]
[1761005935865,0.612,3973.5,3973.4,4.25611]
[1761005936967,0.408,3973.5,3973.4,4.25611]
[1761005937268,1.0649,3973.5,3973.4,3.5692]
[1761005937464,1.0649,3973.5,3973.4,3.2078]
[1761005938256,1.0649,3973.5,3973.4,3.66071]
[1761005939867,0.612,3973.5,3973.4,4.26501]
[1761005940167,0.408,3973.5,3973.4,4.49431]
[1761005940967,1.0939,3973.5,3973.4,3.5594]
[1761005941275,1.15194,3973.2,3973.1,0.3516]
[1761005941469,0.68595,3973.1,3973.0,3.2078]
[1761005941674,1.15195,3973.1,3973.0,3.2078]
[1761005941971,1.15195,3973.1,3973.0,3.5594]
[1761005942173,0.699,3973.1,3973.0,4.01236]
[1761005942475,1.15195,3973.1,3973.0,3.5594]
[1761005942671,1.15196,3973.0,3972.9,0.35396514]
[1761005942865,1.15196,3973.0,3972.9,0.00236514]
[1761005943264,1.15196,3973.0,3972.9,0.35396514]
[1761005943773,1.15196,3973.0,3972.9,0.00236514]
[1761005944468,0.699,3973.0,3972.9,0.80693514]
[1761005944674,1.15196,3973.0,3972.9,1.05963514]
[1761005945168,0.466,3973.0,3972.9,1.05963514]
[1761005945472,1.15196,3973.0,3972.9,0.35396514]
[1761005945671,6.22626,3973.0,3972.9,0.00236514]
[1761005946872,1.22626,3973.0,3972.9,0.00236514]
[1761005947073,1.15203,3972.4,3972.2,3.2078]
[1761005947280,1.15204,3972.3,3972.2,4.01245]
[1761005947480,1.15204,3972.3,3972.2,3.66085]
[1761005947772,0.466,3972.3,3972.2,4.26515]
[1761005947976,0.233,3972.7,3972.6,1.28661]
[1761005948281,0.91899,3972.7,3972.6,1.28661]
[1761005950870,0.466,3972.7,3972.6,1.28661]
[1761005952583,0.91899,3972.7,3972.6,0.8336]
[1761005952773,1.15199,3972.7,3972.6,0.3516]
[1761005954176,1.15199,3972.7,3972.6,0.80461]
[1761005954377,0.233,3973.1,3973.0,1.43205]
[1761005954578,0.466,3973.3,3973.2,1.28654]
[1761005954781,1.15193,3973.3,3973.2,0.3516]
[1761005955877,1.15193,3973.3,3973.2,1.03304]
[1761005956084,0.91893,3973.3,3973.2,1.27224]
[1761005956382,0.5628,3973.1,3973.0,0.92995]
[1761005957082,1.01575,3973.1,3973.0,0.92995]
[1761005957283,0.5628,3973.1,3973.0,1.15845]
[1761005957580,0.64052,3973.4,3973.3,1.25212]
[1761005957777,0.1876,3973.4,3973.3,1.25212]
[1761005957981,3.583,3973.7,3973.6,1.25209]
[1761005958179,0.82805,3974.0,3973.9,1.01285]
[1761005958382,0.82805,3974.0,3973.9,0.7992]
[1761005958676,1.01565,3974.0,3973.9,0.56]
[1761005958874,1.01565,3974.0,3973.9,0.3315]
[1761005959382,0.5628,3974.0,3973.9,0.56]
[1761005959783,0.3752,3974.0,3973.9,0.7992]
[1761005960080,1.01565,3974.0,3973.9,0.56]
[1761005960282,1.01565,3974.0,3973.9,0.3315]
[1761005960678,0.1876,3973.6,3973.5,0.5938]
[1761005960884,0.5628,3973.6,3973.5,0.8223]
[1761005961285,1.01569,3973.6,3973.5,0.4724]
[1761005961482,0.3752,3973.6,3973.5,1.1538]
[1761005961679,3.21035128,3974.1,3974.0,0.7009]
[1761005961680,3.58555128,3974.1,3974.0,0.7009]
[1761005962483,4.03838128,3974.1,3974.0,0.7009]
[1761005963091,4.22598128,3974.1,3974.0,0.3315]
[1761005964183,4.03838128,3974.1,3974.0,0.9401]
[1761005964483,0.45288,3973.7,3973.6,1.11503021]
[1761005964786,1.01568,3973.7,3973.6,0.3315]
[1761005964987,1.01568,3973.7,3973.6,0.56]
[1761005965188,0.82808,3973.7,3973.6,0.56]
[1761005965484,0.82808,3973.7,3973.6,0.7992]
[1761005966083,0.82808,3973.7,3973.6,1.25209]
[1761005967286,0.82808,3973.7,3973.6,0.7992]
[1761005967475,0.98708,3973.7,3973.6,0.56]
[1761005967680,4.19488,3973.7,3973.6,0.3315]
[1761005969082,4.03588,3973.7,3973.6,0.7786]
[1761005969285,0.8924879,3974.0,3973.7,0.3371]
[1761005969481,3.21035128,3974.1,3974.0,0.78995]
[1761005969793,3.98119128,3974.1,3974.0,0.9141]
[1761005971392,3.98119128,3974.1,3974.0,1.36695]
[1761005971889,3.98119128,3974.1,3974.0,0.9141]
[1761005973177,4.14019128,3974.1,3974.0,0.3371]
[1761005973386,0.77088,3973.7,3973.6,1.79042021]
[1761005973891,0.77088,3973.7,3973.6,2.35212021]
[1761005974191,0.318,3973.7,3973.6,2.35212021]
[1761005974382,3.21035128,3974.1,3973.8,0.3371]
[1761005974583,3.21035128,3974.1,3974.0,0.9141]
[1761005974790,3.36935128,3974.1,3974.0,0.9141]
[1761005974991,3.98118128,3974.1,3974.0,0.9141]
[1761005976289,3.66318128,3974.1,3974.0,0.9141]
[1761005976688,3.98118128,3974.1,3974.0,0.9141]
[1761005976884,3.98118128,3974.1,3974.0,0.467]
[1761005976885,4.14018128,3974.1,3974.0,0.467]
[1761005977394,0.77087,3973.8,3973.7,0.67538]
[1761005977893,0.77087,3973.8,3973.7,1.23708]
[1761005979090,0.61187,3973.8,3973.7,1.23708]
[1761005979390,0.77091,3973.4,3973.3,0.5596]
[1761005979693,0.77091,3973.4,3973.3,0.7842]
[1761005979882,0.77091,3973.4,3973.3,1.23713]
[1761005980795,0.45291,3973.4,3973.3,1.23713]
[1761005981692,0.61191,3973.4,3973.3,1.23713]
[1761005983497,0.159,3973.4,3973.3,1.23713]
[1761005984192,0.61189,3973.7,3973.6,1.23709]
[1761005984688,0.8924879,3974.0,3973.9,0.7842]
[1761005984689,0.61185,3974.0,3973.9,0.7842]
[1761005984994,9.76352174,3974.0,3973.9,0.7842]
[1761005985304,0.99752174,3974.0,3973.9,0.7842]
[1761005985898,0.83852174,3974.0,3973.9,0.7842]
[1761005986198,0.45285,3974.0,3973.9,2.35209021]
[1761005987199,0.67958928,3974.0,3973.9,2.35209021]
[1761005987396,4.26183918,3974.1,3974.0,0.78995]
[1761005987698,0.00255128,3974.1,3974.0,1.36695]
[1761005993500,0.45538128,3974.1,3974.0,1.36695]
[1761005993701,0.00255128,3974.1,3974.0,1.36695]
[1761005994402,0.16155128,3974.1,3974.0,1.36695]
[1761005995507,0.61439128,3974.1,3974.0,1.36695]
[1761005996307,0.16155128,3974.1,3974.0,1.36695]
[1761005996998,0.61438128,3974.1,3974.0,1.36695]
[1761005998405,0.00255128,3974.1,3974.0,1.36695]
[1761006005506,1.13178,3975.3,3974.9,0.45273]
[1761006005507,0.45273,3975.0,3974.9,0.45273]
[1761006005707,1.80558,3976.2,3975.5,0.3331]
[1761006006011,3.2078,3976.8,3976.7,0.7865]
[1761006006306,3.2078,3976.8,3976.7,2.12392776]
[1761006006503,0.00305473,3976.8,3976.7,2.12623674]
[1761006009909,3.2078,3977.7,3977.6,0.7865]
[1761006010204,3.2078,3977.7,3977.6,2.12392776]
[1761006010412,3.2078,3978.3,3978.2,0.7865]
[1761006010597,3.507,3978.8,3978.7,0.3331]
[1761006010797,0.2992,3978.6,3978.5,0.6981]
[1761006011202,5.4488,3978.6,3978.5,0.6981]
[1761006012413,5.2992,3978.6,3978.5,0.6981]
[1761006012911,5.4488,3978.6,3978.5,0.6981]
[1761006013309,0.75157,3978.2,3978.1,0.3331]
[1761006013510,0.90124,3977.6,3977.5,0.1368]
[1761006013713,0.90124,3977.6,3976.7,0.00230898]
[1761006013714,0.60209,3977.1,3977.0,0.5902]
[1761006014013,0.75169,3977.1,3977.0,0.9233]
[1761006015111,0.45247,3977.3,3977.2,0.2282]
[1761006015319,0.75167,3977.3,3977.2,0.7865]
[1761006016813,0.60207,3977.3,3977.2,0.7865]
[1761006017114,0.76267,3977.3,3977.2,0.7865]
[1761006017515,0.45247,3977.3,3977.2,0.7865]
[1761006017718,0.61307,3977.3,3977.2,0.7865]
[1761006017917,0.77367,3977.3,3977.2,0.7865]
[1761006021218,0.61307,3977.3,3977.2,0.7865]
[1761006021621,3.3684,3977.7,3977.3,0.3322]
[1761006021811,0.45238,3978.1,3977.7,0.45242]
[1761006022016,3.66017,3978.2,3978.1,0.7949]
[1761006022214,3.2078,3978.2,3978.1,1.24728]
[1761006022710,3.66017,3978.2,3978.1,0.7949]
[1761006022909,3.82077,3978.2,3978.1,0.7949]
[1761006023721,3.66017,3978.2,3978.1,0.7949]
[1761006023919,0.61297,3978.2,3978.1,0.7949]
[1761006024911,0.3212,3978.2,3977.8,0.3322]
[1761006025115,0.4818,3977.9,3977.8,0.5645]
[1761006025323,0.77362,3977.7,3977.6,0.5645]
[1761006025523,0.93422,3977.7,3977.6,0.5645]
[1761006026020,0.3212,3977.6,3977.3,0.3322]
[1761006026222,3.2078,3977.8,3977.3,0.3322]
[1761006026223,0.3212,3977.4,3977.3,0.3322]
[1761006026523,0.77366,3977.4,3977.3,0.5645]
[1761006026819,0.45245,3977.5,3977.3,0.7949]
[1761006027020,0.45244,3977.7,3977.6,0.7949]
[1761006027326,0.45244,3977.7,3977.6,2.13232776]
[1761006027526,8.931,3978.0,3977.7,0.4286]
[1761006027727,0.7514,3977.9,3977.8,0.7557]
[1761006028124,0.45244,3977.6,3977.3,3.2078]
[1761006028313,3.2078,3977.4,3977.1,0.3271]
[1761006028519,0.45249,3977.2,3977.1,0.7557]
[1761006030422,0.60199,3977.2,3977.1,0.7557]
[1761006030622,0.90099,3977.2,3977.1,0.3271]
[1761006031015,0.90099,3977.2,3977.0,0.1351]
[1761006031016,0.45253,3976.8,3976.7,0.54040898]
[1761006031219,0.45253,3976.8,3976.7,0.32940898]
[1761006031220,0.90103,3976.8,3976.7,0.32940898]
[1761006031522,0.75153,3976.8,3976.7,0.54040898]
[1761006031717,0.90103,3976.8,3976.7,0.00230898]
[1761006032223,0.90103,3976.8,3976.7,0.32940898]
[1761006032427,4.10883,3976.8,3976.7,0.00230898]
[1761006032817,18.04983,3976.8,3976.7,0.00230898]
[1761006033921,0.45264,3975.8,3975.6,3.2078]
[1761006034120,0.74704,3975.8,3975.7,0.7557]
[1761006035020,0.74940154,3975.8,3975.7,0.7574716]
[1761006035228,0.00236154,3975.8,3975.7,0.7574716]
[1761006035421,0.00236154,3975.8,3975.7,5.7574716]
[1761006035616,0.00236154,3975.8,3975.7,6.42993836]
[1761006036727,0.14956154,3975.8,3975.7,0.7574716]
[1761006039333,0.00236154,3975.8,3975.7,0.7574716]
[1761006040626,0.45500154,3975.8,3975.7,0.7574716]
[1761006040829,0.45500154,3975.8,3975.7,1.2101216]
[1761006041834,0.00236154,3975.8,3975.7,1.2101216]
[1761006046132,0.00236154,3975.8,3975.7,7.11243688]
[1761006049644,0.00236154,3975.8,3975.7,10.32023688]
[1761006053253,0.45258,3976.4,3976.3,1.20828]
[1761006054151,0.4547701,3976.4,3976.3,1.20828]
[1761006054951,0.7491701,3976.4,3976.3,0.7557]
[1761006055752,0.6019701,3976.4,3976.3,0.7557]
[1761006055953,0.7491701,3976.4,3976.3,0.7557]
[1761006056557,0.6019701,3976.4,3976.3,0.7557]
[1761006056849,0.6019701,3976.4,3976.3,1.20828]
[1761006057353,0.4547701,3976.4,3976.3,1.20828]
[1761006057661,0.7483701,3976.4,3976.3,0.3271]
[1761006057844,0.8947701,3976.4,3976.3,0.3271]
[1761006058352,0.7483701,3976.4,3976.3,0.5376]
[1761006058544,0.7483701,3976.4,3976.3,0.7607]
[1761006059645,0.7483701,3976.4,3976.3,0.5376]
[1761006059948,0.8947701,3976.4,3976.3,0.5376]
[1761006060142,0.8947701,3976.4,3976.3,0.3271]
[1761006062359,0.74539,3976.2,3976.1,0.67591956]
[1761006062656,0.74539,3976.2,3976.1,0.88641956]
[1761006062849,0.74539,3976.2,3976.1,1.23121956]
[1761006063658,0.74539,3976.2,3976.1,0.5553]
[1761006064258,0.74539,3976.2,3976.1,1.23121956]
[1761006064559,0.74539,3976.2,3976.1,0.5553]
[1761006065154,0.4547701,3976.4,3976.3,1.23098]
[1761006065356,0.4547701,3976.4,3976.3,1.45431956]
[1761006065659,0.4547701,3976.4,3976.1,0.3448]
[1761006065660,0.89179,3976.2,3976.1,0.3448]
[1761006065859,4.09959,3976.2,3976.1,0.3448]
[1761006066548,4.09959,3976.2,3975.9,0.67591956]
[1761006066549,8.5006,3976.2,3975.9,0.67591956]
[1761006066856,0.89184,3975.8,3975.7,0.0017716]
[1761006067153,14.36031251,3975.8,3975.7,0.0017716]
[1761006067350,19.36031251,3975.8,3975.7,0.0017716]
[1761006067752,19.36031251,3975.8,3975.7,0.3465716]
[1761006068051,20.25959074,3975.8,3975.7,0.0017716]
[1761006068253,19.36031251,3975.8,3975.7,0.0017716]
[1761006069152,13.24678732,3975.8,3975.7,0.3465716]
[1761006069354,1.35188823,3976.1,3975.7,2.34634679]
[1761006069554,3.5006,3976.3,3976.2,0.7784]
[1761006070051,3.95318,3976.3,3976.2,0.5553]
[1761006070357,4.31436312,3976.3,3976.2,0.3448]
[1761006070765,4.31436312,3976.3,3975.7,0.0017716]
[1761006070766,0.4392,3975.9,3975.8,0.3448]
[1761006070951,3.5006,3975.9,3975.8,0.5553]
[1761006071358,0.1464,3975.8,3975.7,0.0017716]
[1761006071562,0.4392,3975.8,3975.7,0.0017716]
[1761006072449,0.4392,3975.8,3975.7,0.3465716]
[1761006072450,0.89184,3975.8,3975.7,0.3465716]
[1761006074456,9.53399,3976.2,3976.1,0.7784]
[1761006074859,9.68039,3976.2,3976.1,0.7784]
[1761006077158,9.68039,3976.2,3976.1,0.3448]
[1761006077159,9.82729,3976.2,3976.1,0.3448]
[1761006077360,0.89334,3975.8,3975.7,0.0017716]
[1761006077561,0.89334,3975.8,3974.8,0.3435]
[1761006077562,0.74654,3974.9,3974.8,0.3435]
[1761006077859,9.83144,3974.9,3974.8,0.3435]
[1761006078047,9.68454,3974.9,3974.8,0.3435]
[1761006078248,0.2938,3974.4,3974.3,0.2283]
[1761006078462,0.2938,3974.1,3974.0,0.3563]
[1761006078762,9.2318,3974.1,3974.0,0.91084243]
[1761006082563,9.2318,3974.1,3974.0,0.70254243]
[1761006084454,9.3787,3974.1,3974.0,0.47424243]
[1761006085969,9.2318,3974.1,3974.0,0.70254243]
[1761006086163,9.68463,3974.1,3974.0,0.70254243]
[1761006086364,9.68463,3974.1,3974.0,0.91084243]
[1761006090571,3.6606,3974.4,3974.3,1.23961]
[1761006090871,3.502,3974.8,3974.7,0.564]
[1761006091168,12.45,3974.8,3974.7,0.564]
[1761006091362,3.95475,3974.8,3974.7,0.7868]
[1761006091562,12.75565,3974.8,3974.7,0.7868]
[1761006092664,12.90275,3974.8,3974.7,0.564]
[1761006093570,13.04985,3974.8,3974.7,0.564]
[1761006093871,12.90275,3974.8,3974.7,0.564]
[1761006094368,0.89408,3974.6,3974.5,0.4813]
[1761006094571,9.69298,3974.6,3974.5,0.6996]
[1761006094871,9.69298,3974.6,3974.5,0.9224]
[1761006095474,9.84008,3974.6,3974.5,0.3457]
[1761006095674,9.69298,3974.6,3974.5,0.6996]
[1761006095974,9.69298,3974.6,3974.5,0.9224]
[1761006096571,9.84008,3974.6,3974.5,0.6996]
[1761006096869,9.84008,3974.6,3974.5,0.3457]
[1761006097072,0.74703,3974.1,3974.0,0.34904243]
[1761006097772,0.74703,3974.1,3974.0,0.69474243]
[1761006097972,8.947,3974.2,3974.1,0.79853]
[1761006098271,8.947,3974.2,3974.1,1.23963]
[1761006098875,0.1471,3974.7,3974.6,0.7868]
[1761006099075,3.2078,3974.8,3974.7,0.3457]
[1761006099076,12.1518,3974.8,3974.7,0.3457]
[1761006099281,13.04585,3974.8,3974.7,0.564]
[1761006099570,0.89408,3974.6,3974.5,0.4813]
[1761006099767,0.1471,3974.2,3974.1,0.564]
[1761006099966,0.2942,3974.2,3974.1,1.23963]
[1761006100171,8.946,3974.4,3974.3,1.23961]
[1761006101873,9.3988,3974.4,3974.3,1.23961]
[1761006102773,9.3988,3974.4,3974.3,2.35387845]
[1761006103174,9.5459,3974.4,3974.3,2.35387845]
[1761006103475,9.693,3974.4,3974.3,2.35387845]
[1761006103778,8.946,3974.4,3974.3,2.35387845]
[1761006105679,0.59988,3974.7,3974.6,0.7868]
[1761006105978,9.54288,3974.7,3974.6,0.7868]
[1761006106572,9.68998,3974.7,3974.6,0.7868]
[1761006106774,0.2942,3974.4,3974.2,0.2183]
[1761006107073,0.74701,3974.3,3974.2,0.2183]
[1761006107274,0.74701,3974.3,3974.2,1.23991956]
[1761006107883,0.74701,3974.3,3974.2,1.69273956]
[1761006108080,0.1471,3974.3,3974.2,1.23962]
[1761006108288,0.59991,3974.3,3974.2,1.23962]
[1761006109486,9.68997,3974.7,3974.6,0.7868]
[1761006111379,9.68297,3974.7,3974.6,1.23958]
[1761006111574,9.68297,3974.7,3974.6,0.7868]
[1761006111779,9.83007,3974.7,3974.6,0.3457]
[1761006112180,9.83007,3974.7,3974.6,0.564]
[1761006112386,9.68297,3974.7,3974.6,0.564]
[1761006113086,9.83007,3974.7,3974.6,0.564]
[1761006113589,9.68297,3974.7,3974.6,1.91748621]
[1761006113887,9.68297,3974.7,3974.6,1.46470621]
[1761006114776,9.68297,3974.7,3974.6,1.02360621]
[1761006114981,9.83007,3974.7,3974.6,1.02360621]
[1761006115182,9.83007,3974.7,3974.6,1.24190621]
[1761006115587,9.68297,3974.7,3974.6,1.46470621]
[1761006116288,9.68297,3974.7,3974.6,0.7868]
[1761006116489,9.68297,3974.7,3974.6,1.23958]
[1761006116690,9.2302,3974.7,3974.6,1.23958]
[1761006117789,9.68297,3974.7,3974.6,1.23958]
[1761006118186,8.936,3974.7,3974.6,1.23958]
[1761006118387,0.8972499,3975.8,3975.5,1.04047]
[1761006118594,0.1468,3975.8,3975.7,1.88326845]
[1761006118798,0.1468,3975.8,3975.7,2.33591845]
[1761006119295,3.3546,3976.0,3975.9,0.769]